Cogmind - Beta 12 X6 @@@ ROGUE MODE // 2023.02.18 @ 11:25:03 // AFD2019/Pay2Buy Player: ArabianSandBoa Result: Destroyed self with Mini Grenade Launcher Performance ------------- Evolutions (1) 500 Regions Visited (3) 600 Robots Destroyed (26) 130 Value Destroyed (860) 860 Prototype IDs (0) 0 Alien Tech Used (0) 0 Bonus (400) 400 TOTAL SCORE: 2490 Bonus ------- Pacifist 200 High Alert Combat Kills 200 Cogmind --------- Core Integrity 0/400 Matter 158/300 Energy 100/100 System Corruption 0% Temperature Cool (0) Movement Treading (145) Location -9/Materials Parts ------- > --- POWER (1) -------- (None) > --- PROPULSION (2) --- Advanced Treads > --- UTILITY (4) ------ Melee Analysis Suite Melee Analysis Suite Melee Analysis Suite Melee Analysis Suite > --- WEAPON (2) ------- Mini Grenade Launcher Scythe > --- INVENTORY (10) --- VTOL Module Peak State ------------ > --- POWER ------------ (None) > --- PROPULSION ------- VTOL Module Cesium-ion Thruster > --- UTILITY ---------- Melee Analysis Suite Melee Analysis Suite Melee Analysis Suite Melee Analysis Suite > --- WEAPON ----------- Scythe > --- INVENTORY -------- Mini Grenade Launcher [Rating: 20] Favorites ----------- Power None Propulsion Cesium-ion Thruster Treads Advanced Treads Flight Unit Cesium-ion Thruster Utility Melee Analysis Suite Device Improved Sensor Array Processor Melee Analysis Suite Weapon Scythe Launcher Mini Grenade Launcher Slashing Weapon Scythe Build | -11 -10 -10 -9 ------- Run | Jun Mat Min Mat Slots Evolved 2 | . . . 2 Power . | . . . . Propulsion . | . . . . Utility 2 | . . . 2 Weapon . | . . . . Parts Attached 5 | . . . 5 Power . | . . . . Engine . | . . . . Core . | . . . . Reactor . | . . . . Propulsion 3 | . . . 3 Treads . | . . . . Leg . | . . . . Wheel . | . . . . Hover . | . . . . Flight 3 | . . . 3 Utility . | . . . . Device . | . . . . Storage . | . . . . Processor . | . . . . Hackware . | . . . . Protection . | . . . . Artifact . | . . . . Weapon 2 | . . . 2 Energy Gun . | . . . . Energy Cannon . | . . . . Ballistic Gun . | . . . . Ballistic Cannon . | . . . . Launcher 2 | . . . 2 Special Weapon . | . . . . Impact Weapon . | . . . . Slashing Weapon . | . . . . Piercing Weapon . | . . . . Special Melee Weapon . | . . . . Unidentified Prototypes . | . . . . Parts Lost 4 | . . . 4 Power . | . . . . Propulsion 3 | . . . 3 Utility 1 | . . . 1 Weapon . | . . . . Highest Loss Streak 2 | . . . 2 To Critical Strikes . | . . . . Average Slot Usage (%) 46 | . . . 60 Flight 13 | . . . 16 Device 4 | . . . 5 Processor 18 | . . . 23 Launcher 2 | . . . 2 Slashing Weapon 8 | . . . 11 Naked Turns 115 | . 23 92 . Heaviest Build 4 | . . . 4 Greatest Support 22 | 3 3 3 22 Greatest Overweight (x) . | . . . . Average Overweight (x) . | . . . . Largest Inventory Capacity 10 | 10 10 10 10 Average Capacity 10 | 10 10 10 10 Most Carried 2 | . . . 2 Average Carried . | . . . . Final Capacity 10 | 10 10 10 10 Final Carried 1 | . . . 1 Class Distribution -------------------- 54% | Mutant 45% | Sprinter Dominant Class ---------------- Mutant | -10/Materials Mutant | -10/Mines Sprinter | -9/Materials Resources | -11 -10 -10 -9 ----------- Run | Jun Mat Min Mat Matter Collected 178 | . . . 178 Remotely . | . . . . Salvage Created 346 | . . . 346 Parts . | . . . . Haulers Intercepted 1 | . . . 1 Recyclers Shooed . | . . . . Parts Field Recycled . | . . . . Retrieved Matter . | . . . . Parts Self-Destructed . | . . . . Prevented . | . . . . Kills | -11 -10 -10 -9 ------- Run | Jun Mat Min Mat Combat Hostiles Destroyed 20 | . . . 20 Melee 8 | . . . 8 AOE 12 | . . . 12 Classes Destroyed 8 | . . . 8 Worker 1 | . . . 1 Builder 2 | . . . 2 Hauler 1 | . . . 1 Operator 1 | . . . 1 Watcher 1 | . . . 1 Swarmer 14 | . . . 14 Grunt 5 | . . . 5 Sentry 1 | . . . 1 Best Kill Streak 12 | . . . 12 Combat Bots Only 8 | . . . 8 Max Kills in Single Turn 4 | . . . 4 Gunslinging . | . . . . Exploded 3 | . . . 3 Melee 1 | . . . 1 Uniques/NPCs Destroyed . | . . . . Combat | -11 -10 -10 -9 -------- Run | Jun Mat Min Mat Damage Taken 651 | . . . 651 Core 408 | . . . 408 Absorbed by Shields . | . . . . Core Remaining (%) 100 | 100 . 100 . Volleys Fired 9 | . . . 9 Largest 1 | . . . 1 Hottest 30 | . . . 30 Shots Fired 9 | . . . 9 Gun . | . . . . Cannon . | . . . . Launcher 9 | . . . 9 Special . | . . . . Kinetic . | . . . . Thermal . | . . . . Explosive 9 | . . . 9 Electromagnetic . | . . . . Robot Hit Streak 3 | . . . 3 Robot Miss Streak 2 | . . . 2 Penetration Max . | . . . . Secondary Targets . | . . . . Shots Hit Robots 23 | . . . 23 Core Hits 29 | . . . 29 Critical Kills . | . . . . Critical Parts Destroyed . | . . . . Critical Strikes . | . . . . Melee Attacks 59 | . . . 59 Impact . | . . . . Slashing 59 | . . . 59 Piercing . | . . . . Sneak Attacks 1 | . . . 1 Combat Hostiles . | . . . . Follow-up Attacks . | . . . . Damage Inflicted 1565 | . . . 1565 Guns . | . . . . Cannons . | . . . . Explosions 947 | . . . 947 Melee 618 | . . . 618 Ramming . | . . . . Kinetic . | . . . . Thermal . | . . . . Explosive 947 | . . . 947 Electromagnetic . | . . . . Impact . | . . . . Slashing 618 | . . . 618 Piercing . | . . . . Highest Corruption . | . . . . Average Corruption . | . . . . Corruption Purged . | . . . . Corruption Blocked . | . . . . Overload Shots . | . . . . Overflow Damage 151 | . . . 151 Projectiles . | . . . . Explosions 85 | . . . 85 Melee 66 | . . . 66 Knockbacks . | . . . . Impact . | . . . . Kinetic . | . . . . Secondary . | . . . . Self-Inflicted Damage 109 | . . . 109 Shots 4 | . . . 4 Rammed . | . . . . Targets Rammed . | . . . . Kicked . | . . . . Crushed . | . . . . Highest Temperature 11 | . . . 11 Average Temperature 6 | . . . 6 Received Heat Transfer 168 | . . . 168 Siege Activations . | . . . . Robots Corrupted . | . . . . Combat Hostiles . | . . . . Parts Fried . | . . . . Impact Corruptions . | . . . . Robots Melted . | . . . . Combat Hostiles . | . . . . Parts Melted . | . . . . Heat Transferred . | . . . . Parts Sabotaged . | . . . . Parts Stolen . | . . . . Parts Stripped . | . . . . Power Chain Reactions . | . . . . Missiles Intercepted . | . . . . Alert | -11 -10 -10 -9 ------- Run | Jun Mat Min Mat Peak Influence 1349 | . . 15 1349 Initial 5 | . . . 5 Average 447 | . . 13 589 Maximum Alert Level 4 | . . . 4 Low Security (%) 41 | 100 100 100 21 Level 1 13 | . . . 18 Level 2 10 | . . . 13 Level 3 32 | . . . 42 Level 4 2 | . . . 3 Level 5 . | . . . . High Security . | . . . . Max Security . | . . . . Squads Dispatched 8 | . . . 8 Investigation 7 | . . . 7 Extermination . | . . . . Reinforcement 1 | . . . 1 Assault . | . . . . Garrison . | . . . . Intercept . | . . . . Searches Triggered . | . . . . Construction Impeded . | . . . . Haulers Reinforced . | . . . . Active Scanning Responses . | . . . . Cargo Convoy Interrupts . | . . . . Stealth | -11 -10 -10 -9 --------- Run | Jun Mat Min Mat Distress Signals 5 | . . . 5 Communications Jammed . | . . . . Distress Signals . | . . . . Times Spotted 51 | . . 1 50 Peak Tracking Total 19 | . . 1 19 Tactical Retreats 8 | . . . 8 Traps | -11 -10 -10 -9 ------- Run | Jun Mat Min Mat Traps Triggered 1 | . . . 1 Indirectly . | . . . . Trap Hack Attempts . | . . . . Triggered . | . . . . Disarmed . | . . . . Reprogrammed . | . . . . Reused . | . . . . Traps Extracted . | . . . . Installed . | . . . . Triggered . | . . . . Machines | -11 -10 -10 -9 ---------- Run | Jun Mat Min Mat Machines Disabled 22 | . . . 22 Max in Single Turn 1 | . . . 1 Machines Repaired 4 | . . . 4 Machines Sabotaged . | . . . . Overloaded Fab Kills . | . . . . Hacking | -11 -10 -10 -9 --------- Run | Jun Mat Min Mat Machines Accessed 7 | . . . 7 Terminals 6 | . . . 6 Fabricators . | . . . . Repair Stations . | . . . . Recycling Units . | . . . . Scanalyzers 1 | . . . 1 Garrison Access . | . . . . Total Hacks 20 | . . . 20 Successful 12 | . . . 12 Failed 8 | . . . 8 Catastrophic . | . . . . Database Lockouts . | . . . . Manual 18 | . . . 18 Terminals 19 | . . . 19 Fabricators . | . . . . Repair Stations . | . . . . Recycling Units . | . . . . Scanalyzers 1 | . . . 1 Garrison Access . | . . . . Terminal Hacks 2 | . . . 2 Record 1 | . . . 1 Unreport Threat 1 | . . . 1 Fabricator Hacks . | . . . . Repair Station Hacks . | . . . . Recycling Unit Hacks . | . . . . Scanalyzer . | . . . . Garrison Access Hacks . | . . . . Unauthorized Hacks 10 | . . . 10 Terminals 9 | . . . 9 Botnet 3 | . . . 3 Sabotage 6 | . . . 6 Fabricators . | . . . . Repair Stations . | . . . . Recycling Units . | . . . . Scanalyzers 1 | . . . 1 Extract 1 | . . . 1 Garrison Access . | . . . . Data Cores Recovered . | . . . . Used . | . . . . Hacking Detections 3 | . . . 3 Full Trace Events . | . . . . Feedback Events . | . . . . Feedback Blocked . | . . . . Robot Schematics Acquired . | . . . . Robots Built . | . . . . Authchips . | . . . . Time . | . . . . Total Robot Build Rating . | . . . . Part Schematics Acquired 1 | . . . 1 Parts Built . | . . . . Authchips . | . . . . Time . | . . . . Total Part Build Rating . | . . . . Parts Repaired . | . . . . Time . | . . . . Parts Recycled . | . . . . Recycled Matter . | . . . . Retrieved Matter . | . . . . Retrieved Components . | . . . . Parts Scanalyzed . | . . . . Part Schematics Acquired . | . . . . Parts Damaged . | . . . . Bothacking | -11 -10 -10 -9 ------------ Run | Jun Mat Min Mat Used RIF Installer . | . . . . Robots Hacked . | . . . . Non-combat . | . . . . Combat . | . . . . Robot Hacks Applied . | . . . . Relay Couplers Released . | . . . . Fabnet Peak Effective % . | . . . . Robots Rewired . | . . . . Allies Hacked . | . . . . Hacks Repelled . | . . . . Allies | -11 -10 -10 -9 -------- Run | Jun Mat Min Mat Total Allies . | . . . . Largest Group . | . . . . Highest-Rated Group . | . . . . Highest-Rated Ally . | . . . . Total Orders . | . . . . Ally Attacks . | . . . . Total Damage . | . . . . Kills . | . . . . Allies Corrupted . | . . . . Allies Melted . | . . . . Intel | -11 -10 -10 -9 ------- Run | Jun Mat Min Mat Robot Analysis Total . | . . . . Derelict Logs Recovered . | . . . . Drone Launches . | . . . . Drone Recoveries . | . . . . Exploration | -11 -10 -10 -9 ------------- Run | Jun Mat Min Mat Turns Passed 506 | 9 23 92 382 Spaces Moved 715 | 18 45 155 497 Core 218 | 18 45 155 . Treads 1 | . . . 1 Legs . | . . . . Wheels . | . . . . Hover . | . . . . Flight 496 | . . . 496 Fastest Speed 32 | 50 50 50 32 Average Speed 38 | 50 50 50 33 Slowest Speed 145 | 50 50 50 145 Overloaded Moves . | . . . . Propulsion Burnouts . | . . . . Robots Hopped 6 | . . . 6 Cave-ins Triggered . | . . . . Exploration Rate (%) 31 | 3 13 40 69 Regions Visited 3 Branch Regions 1 Pre-discovered Areas 1 | . . 1 . Known Exits Taken . | . . . . Unknown Exits Taken 3 | 1 1 1 . Scrap Searched . | . . . . Spaces Dug 12 | . . . 12 Terrain Destroyed 45 | . . . 45 Melee 12 | . . . 12 Projectile . | . . . . AOE 33 | . . . 33 Terrain Rammed . | . . . . Walls Destroyed . | . . . . Machines Disabled . | . . . . Actions | -11 -10 -10 -9 --------- Run | Jun Mat Min Mat Total 840 | 17 44 168 611 Wait 57 | . . 14 43 Move 700 | 17 44 154 485 Hop 6 | . . . 6 Pick Up . | . . . . Fast Attach 2 | . . . 2 Attach 3 | . . . 3 Detach 4 | . . . 4 Swap . | . . . . Drop . | . . . . Fire 9 | . . . 9 Melee 59 | . . . 59 Ram . | . . . . Kick . | . . . . Crush . | . . . . Escape Stasis . | . . . . Rewire . | . . . . Trap . | . . . . Miscellaneous . | . . . . Route ------- -11/Junkyard -10/Materials -10/Mines -9/Materials (discovered 1 exit: [*Mat]) History --------- Turn | Location | Event 3 | -11/Junkyard | Discovered new exit (range 15) 10 | -11/Junkyard | Entered Materials 29 | -10/Materials | Discovered new exit (range 7) 33 | -10/Materials | Entered Mines 40 | -10/Mines | Joined a pair of Derelicts in attacking an 0b10 outpost 104 | -10/Mines | Learned location of Storage (-7) 122 | -10/Mines | Discovered new exit (range 8) 125 | -10/Mines | Entered Materials 125 | -9/Materials | Evolved 2 slots: Utility x2 304 | -9/Materials | Core integrity fell below 50% 326 | -9/Materials | Discovered new exit (range 8) 497 | -9/Materials | Core integrity fell below 20% 507 | -9/Materials | Destroyed self with Mini Grenade Launcher Last Messages --------------- 00497_ U-05 Engineer destroyed. 00497_ G-34 Mercenary destroyed. 00497_ Electrolysis Chamber disabled. 00497_ Destroyed Flight Unit. 00497_ S-10 Pest destroyed. 00498_ K-01 Serf collects debris. 00499_ S-10 Pest destroyed. 00499_ Destroyed Flight Unit. 00499_ K-01 Serf destroyed. 00501_ Y-45 Defender destroyed. 00501_ S-10 Pest destroyed. 00501_ W-16 Scout destroyed. 00501_ Destroyed Flight Unit. 00501_ U-05 Engineer lays Concrete. 00503_ The unstable cave ceiling collapses. 00503_ Destroyed Lgt. Ion Engine. 00503_ S-10 Pest destroyed. 00503_ U-05 Engineer lays Concrete. 00507_ G-34 Mercenary destroyed. 00507_ U-05 Engineer destroyed. Map ----- +----------------------------------------------------+ | # "" #???????????????????????????????? | | # ###?????????????????????????????? | | # "####??????????????????????????? | | # ## #??????????????????????????? | | #+######/#### #??????????????????????????? | | " #??????????????????????????? | | " #??????????????????????????? | | #??????????????????????????? | | ########## #??????????????????????????? | | ##### ########??????????????????????????? | | # #???????#######??????# ????????? | | # T #???????# ####### ????????? | | / #???????# ?????????? | | # #???????# ??????????? | | "#########???????# ???????????? | | #???????????????# #????????????? | | #???????????????## #????????????? | | #????????######## ##???????????? | | #????????# % % T#???????????? | | #????????? #######??????? | | #??????????? % #??????? | | % #+############ % #??????? | | t % #??????? | | % ##### #??????? | | #?# #??????? | | ####+####+## % @ #?# #??????? | | ???# ## w #?# #####??????? | | ???# ## #?# ####?######? | | ???# ## ## +? """ #? | | #### ######## """ ### # """ #? | | + #??????# """ #?# # """ #? | | # #??????# #?# / #? | | ########??????##+########?#### # #? | | ##/###########?????# #???????????# # #? | | # ????# #?????????### ########? | | """ # ??# #?????????# #?????? | | """ """ "R"?#""" # ########### #?????? | | """ """ " "?#""" / #?????? | | "" """ #""" # ########### #?????? | | # ??# #?????????# #?????? | | ######## ##??##????# #?????????#######?????? | | #???##?????????# #?????????????????????? | | #??????????????# #?????????????????????? | | #??????????????# #?????????????????????? | | "" #??????????????# #?????????????????????? | | "" #??????????????# #?????????????????????? | | " #??????????????# #?????????????????????? | | "" #??????????????# #?????????????????????? | | "" #??????????????# #?????????????????????? | | #??????????????# #?????????????????????? | +----------------------------------------------------+ Best States ------------- Heat Dissipation 28 Energy Generation 5 Energy Capacity 100 Matter Stores 228 Matter Capacity 300 Sight Range 16 Robot Scan Range 15 Terrain Scan Density 10 Evasion (%) 63 Melee Accuracy 20 Recoil Reduction 1 Item Schematics ----------------- Lrg. Storage Unit | -9/Materials | Extracted Robot Schematics ------------------ None Fabricated ------------ Nothing Alien Tech Used ----------------- None Achievements -------------- None Challenges ------------ None Cogshop Purchases (13) ------------------------ Scythe (1283) Cesium-ion Thruster (1139) Cesium-ion Thruster (1139) Cesium-ion Thruster (1139) Imp. Sensor Array (742) Imp. Signal Interpreter (779) Melee Analysis Suite (725) Mni. Grenade Launcher (1024) Melee Analysis Suite (903) Melee Analysis Suite (903) Melee Analysis Suite (903) VTOL Module (1451) Adv. Treads (738) Game ------ Seed AssaultSpreadDissipator Manual? 0 Play Time 00:13:27 Cumulative 332.0 hours Start 2023.02.18 @ 11:13:16 End 2023.02.18 @ 11:25:03 Sessions 1 Manual Loads 0 Difficulty Rogue Special Mode AFD2019/Pay2Buy Game No. 402 Rogue 402 Adventurer 0 Explorer 0 Win Type - Total 0 Types 0/0/0/0/0/0/0/0/0 Lore% 49 Gallery% 72 Achievement% 60 Wizard Run 0 Options --------- ASCII 0 Keyboard 0 Movement Mouse Keybinds 0 Fullscreen 2 Font 24/Smallcaps Map View 76x50 Tactical HUD 1 Map Filters NONE Filters NONE Steam 1 RUN: 3a5c9495-79c8-4462-a61d-6fc41b86b3cb